bitfinex/quotes_BTCUSD_20251217
["timestamp","ask_amount","ask_price","bid_price","bid_amount"]
[1766012766173,0.25,86410.0,86344.0,0.0002553]
[1766012766174,0.01169092,86369.0,86352.0,0.013895]
[1766012766375,0.01157836,86368.0,86355.0,1.05276]
[1766012766807,0.33395577,86369.0,86357.0,0.46821]
[1766012766808,0.00025522,86361.0,86357.0,0.46821]
[1766012767043,0.00025522,86361.0,86359.0,1.05276]
[1766012768860,0.00025522,86361.0,86359.0,1.05476]
[1766012769067,0.00025522,86361.0,86352.0,0.00051904]
[1766012769068,0.0115801,86355.0,86352.0,0.00051904]
[1766012769271,0.01157983,86357.0,86352.0,0.01883904]
[1766012769472,0.01183452,86361.0,86352.0,0.01883904]
[1766012769652,0.00025522,86361.0,86352.0,0.01883904]
[1766012770534,0.00025522,86361.0,86352.0,0.47508904]
[1766012770733,0.00025522,86361.0,86353.0,0.62338]
[1766012771496,0.00025522,86361.0,86359.0,0.001]
[1766012771920,0.00025522,86361.0,86353.0,0.62338]
[1766012774404,0.00025522,86361.0,86354.0,1.03768]
[1766012774808,0.0182827,86369.0,86355.0,0.013895]
[1766012775419,0.02014557,86369.0,86355.0,0.013895]
[1766012775594,0.03172379,86369.0,86355.0,0.013895]
[1766012775801,0.11084557,86369.0,86355.0,0.013895]
[1766012776132,0.11184557,86369.0,86355.0,0.013895]
[1766012776936,0.02114557,86369.0,86355.0,0.013895]
[1766012777183,0.10150887,86369.0,86355.0,0.013895]
[1766012777396,0.02114557,86369.0,86355.0,0.013895]
[1766012777608,0.02089557,86369.0,86355.0,0.577505]
[1766012777779,0.01989557,86369.0,86355.0,0.577505]
[1766012778341,0.03147379,86369.0,86355.0,0.577505]
[1766012778565,0.26303876,86369.0,86355.0,0.577505]
[1766012778964,0.03147379,86369.0,86355.0,0.577505]
[1766012779198,0.01989557,86369.0,86358.0,0.47407]
[1766012781441,0.00025,86367.0,86355.0,0.013895]
[1766012783088,0.00172557,86369.0,86356.0,1.03768]
[1766012783265,0.02004557,86369.0,86360.0,0.47407]
[1766012783595,0.02004557,86369.0,86363.0,0.47407]
[1766012783736,0.0907,86375.0,86363.0,0.00161287]
[1766012783937,0.00025519,86369.0,86363.0,0.00161287]
[1766012784155,0.09107559,86375.0,86364.0,1.03768]
[1766012784367,0.23152412,86387.0,86370.0,0.56361]
[1766012784560,0.23152412,86387.0,86374.0,0.56361]
[1766012784561,0.24309319,86387.0,86374.0,0.56361]
[1766012784823,0.00025515,86377.0,86374.0,0.56522287]
[1766012785098,0.00025515,86377.0,86375.0,0.47407]
[1766012785472,0.00025515,86377.0,86375.0,1.03768]
[1766012786409,0.01816699,86383.0,86369.0,0.013895]
[1766012786607,0.01832,86388.0,86376.0,0.00161287]
[1766012786844,0.01832,86388.0,86376.0,0.02747742]
[1766012787049,0.01832,86388.0,86377.0,1.03768]
[1766012787255,0.01832,86388.0,86379.0,1.03768]
[1766012787755,0.01832,86388.0,86379.0,1.03929287]
[1766012787971,0.01832,86388.0,86381.0,0.47407]
[1766012788151,0.01832,86388.0,86381.0,1.03768]
[1766012790210,0.01832,86388.0,86379.0,0.00161287]
[1766012791134,0.01832,86388.0,86381.0,0.001]
[1766012791331,0.01832,86388.0,86379.0,0.56522287]
[1766012791789,0.01832,86388.0,86379.0,0.00161287]
[1766012792735,0.00025512,86385.0,86379.0,0.00161287]
[1766012793238,0.23152435,86384.0,86369.0,0.013895]
[1766012793462,0.03872,86378.0,86368.0,0.013895]
[1766012793659,0.03872,86378.0,86368.0,0.01427059]
[1766012793905,0.58032254,86380.0,86368.0,0.01427059]
[1766012794064,0.03872,86384.0,86368.0,0.01427059]
[1766012794252,0.00025512,86385.0,86370.0,0.56361]
[1766012794466,0.00025512,86385.0,86371.0,0.56361]
[1766012794894,0.01157635,86383.0,86371.0,0.56361]
[1766012795100,0.00163,86366.0,86347.0,0.56361]
[1766012795295,0.01157836,86368.0,86347.0,0.56361]
[1766012795296,0.01832,86368.0,86356.0,0.56361]
[1766012795520,0.01832,86373.0,86361.0,0.56361]
[1766012795728,0.01832,86373.0,86363.0,0.56361]
[1766012795885,0.01832,86373.0,86366.0,0.56361]
[1766012796294,0.01832,86373.0,86367.0,0.47407]
[1766012796495,0.01832,86373.0,86371.0,1.03768]
[1766012796700,0.23215444,86385.0,86372.0,0.013895]
[1766012796701,0.00163071,86385.0,86372.0,0.013895]
[1766012796905,0.00163071,86385.0,86376.0,0.56361]
[1766012797105,0.00063071,86385.0,86376.0,0.47407]
[1766012797325,0.00063071,86385.0,86377.0,0.61256779]
[1766012797976,0.00063071,86385.0,86377.0,1.03768]
[1766012798235,7.1e-07,86385.0,86384.0,0.56361]
[1766012798404,0.10227501,86393.0,86383.0,0.47407]
[1766012798785,0.01157487,86394.0,86383.0,0.47407]
[1766012798981,0.39042423,86397.0,86383.0,0.47407]
[1766012799183,0.39053684,86397.0,86383.0,0.47407]
[1766012799395,0.39053684,86397.0,86385.0,0.013895]
[1766012799396,0.09081261,86397.0,86385.0,0.013895]
[1766012799687,0.01157487,86394.0,86385.0,0.013895]
[1766012799865,0.01157487,86394.0,86383.0,0.00161287]
[1766012799866,0.01157541,86390.0,86383.0,0.00161287]
[1766012800050,0.01157514,86392.0,86385.0,0.013895]
[1766012800255,0.2430785,86392.0,86385.0,0.013895]
[1766012800454,0.01157541,86390.0,86383.0,0.00161287]
[1766012800713,0.01157514,86392.0,86383.0,0.00161287]
[1766012800922,0.00025508,86393.0,86385.0,0.013895]
[1766012801054,0.01183009,86393.0,86385.0,0.013895]
[1766012801258,0.24333038,86393.0,86385.0,0.013895]
[1766012801463,0.01157527,86391.0,86385.0,0.013895]
[1766012801707,0.01157514,86392.0,86385.0,0.013895]
[1766012801914,0.01183009,86393.0,86385.0,0.013895]
[1766012802124,0.00025508,86393.0,86385.0,0.013895]
[1766012802324,0.01183009,86393.0,86385.0,0.013895]
[1766012802523,0.24333087,86393.0,86385.0,0.013895]
[1766012803176,0.24308178,86391.0,86385.0,0.013895]
[1766012803503,0.24308178,86391.0,86385.0,0.014895]
[1766012803719,0.23150311,86392.0,86385.0,0.014895]
[1766012803961,0.01157527,86391.0,86385.0,0.013895]
[1766012804141,0.01157514,86392.0,86385.0,0.013895]
[1766012804341,0.24333039,86393.0,86385.0,0.013895]
[1766012804783,0.01157527,86391.0,86385.0,0.014895]
[1766012804974,0.01183009,86393.0,86385.0,0.013895]
[1766012805154,0.24333072,86393.0,86385.0,0.013895]
[1766012805768,0.01157514,86392.0,86385.0,0.013895]
[1766012806481,0.01157554,86389.0,86379.0,0.47407]
[1766012806684,0.24308611,86390.0,86379.0,0.47407]
[1766012806850,0.01157554,86389.0,86379.0,0.47407]
[1766012807683,0.24308611,86390.0,86379.0,0.47407]
[1766012807826,0.01157514,86392.0,86379.0,0.47407]
[1766012808033,0.01157527,86391.0,86379.0,0.47407]
[1766012808291,0.01157514,86392.0,86379.0,0.47407]
[1766012808699,0.01183009,86393.0,86379.0,0.47407]
[1766012808899,0.00025508,86393.0,86374.0,0.01832]
[1766012809140,0.00011261,86397.0,86386.0,0.61958]
[1766012809351,0.00011261,86397.0,86389.0,1.10023]
[1766012810728,0.01168708,86397.0,86389.0,1.10023]
[1766012810935,0.00011261,86397.0,86389.0,1.10023]
[1766012812425,0.39376304,86400.0,86389.0,1.10184287]
[1766012812782,0.15070258,86400.0,86391.0,0.48065]
[1766012812975,0.01157434,86398.0,86389.0,0.00161287]
[1766012813150,0.05505,86390.0,86382.0,0.01832]
[1766012813364,0.01157554,86389.0,86382.0,0.01843261]
[1766012813560,0.05505,86390.0,86382.0,0.01843261]
[1766012814733,0.05505,86390.0,86382.0,0.00011261]
[1766012815456,0.06662541,86390.0,86382.0,0.00011261]
[1766012815651,0.05505,86390.0,86382.0,0.00011261]
[1766012816277,0.06662541,86390.0,86382.0,0.00011261]
[1766012816479,0.01157527,86391.0,86382.0,0.00011261]
[1766012816734,0.24307022,86395.0,86383.0,0.04990826]
[1766012816864,0.01157514,86392.0,86383.0,0.04990826]
[1766012817066,0.24308052,86393.0,86382.0,0.00011261]
[1766012817356,0.24307837,86392.0,86382.0,0.00011261]
[1766012817507,0.01157554,86389.0,86382.0,0.00011261]
[1766012818076,0.01157527,86391.0,86382.0,0.00011261]
[1766012818254,0.01157541,86390.0,86382.0,0.00011261]
[1766012818480,0.00161,86392.0,86384.0,0.013895]
[1766012818688,0.50356426,86421.0,86390.0,0.48065]
[1766012818689,0.96240843,86400.0,86390.0,0.48065]
[1766012818822,0.0907,86399.0,86391.0,0.61958]
[1766012819022,0.0907,86399.0,86392.0,0.48065]
[1766012819399,0.1022742,86399.0,86392.0,0.48065]
[1766012819693,0.1022742,86399.0,86391.0,0.61958]
[1766012819844,0.1022742,86399.0,86392.0,0.48065]
[1766012820401,0.0907,86399.0,86391.0,0.61958]
[1766012820719,0.0907,86399.0,86392.0,0.48065]
[1766012820859,0.24304082,86406.0,86394.0,0.48065]
[1766012821200,0.24304436,86404.0,86394.0,0.48226287]
[1766012821409,0.24304436,86404.0,86395.0,1.10023]
[1766012821578,4.36e-06,86404.0,86399.0,0.61958]
[1766012821783,0.01157327,86406.0,86395.0,0.00161287]
[1766012822031,0.01157327,86406.0,86395.0,0.48226287]
[1766012822032,0.0115734,86405.0,86395.0,0.48226287]
[1766012822167,0.01157367,86403.0,86395.0,0.48226287]
[1766012822574,0.01157353,86404.0,86395.0,0.48226287]
[1766012823261,0.0907,86405.0,86395.0,0.48226287]
[1766012823415,0.1022734,86405.0,86395.0,0.48226287]
[1766012824016,0.1022734,86405.0,86368.0,0.013895]
[1766012824017,0.34693196,86404.0,86368.0,0.013895]
[1766012824219,0.0004,86425.0,86384.0,0.01832]
[1766012824220,0.58022354,86392.0,86384.0,0.01832]
[1766012824424,0.59179761,86400.0,86386.0,0.61958]
[1766012824625,0.07321,86399.0,86386.0,0.00161287]
[1766012824833,0.01157434,86398.0,86387.0,1.10023]
[1766012825041,0.0907,86399.0,86386.0,0.00161287]
[1766012825371,0.1022742,86399.0,86386.0,0.01550787]
[1766012825979,0.33375837,86399.0,86386.0,0.01550787]
[1766012826389,0.5127,86392.0,86382.0,0.00011261]
[1766012826568,0.1638,86384.0,86382.0,2.61e-06]
[1766012826768,0.59179868,86392.0,86382.0,2.61e-06]
[1766012827427,0.01157527,86391.0,86382.0,2.61e-06]
[1766012827584,0.01157501,86393.0,86382.0,2.61e-06]
[1766012827992,0.24307243,86394.0,86382.0,2.61e-06]
[1766012828852,0.01157514,86392.0,86382.0,2.61e-06]
[1766012829068,0.0907,86391.0,86382.0,2.61e-06]
[1766012830838,0.0907,86391.0,86382.0,0.00100261]
[1766012831053,0.0907,86389.0,86382.0,0.00100261]
[1766012831272,0.0907,86390.0,86382.0,2.61e-06]
[1766012832209,0.0907,86395.0,86382.0,2.61e-06]
[1766012833230,0.70679399,86401.0,86383.0,0.59677]
[1766012833231,0.0907,86399.0,86383.0,0.59677]
[1766012833440,0.1022742,86399.0,86384.0,0.45741]
[1766012833641,0.33375883,86399.0,86384.0,0.45741]
[1766012833837,0.1022742,86399.0,86384.0,0.45741]
[1766012834090,0.1022742,86399.0,86384.0,0.45902287]
[1766012834286,0.01157447,86397.0,86384.0,0.45902287]
[1766012834549,0.10227487,86394.0,86384.0,0.45902287]
[1766012834768,0.10227487,86394.0,86382.0,2.61e-06]
[1766012834769,0.3337813,86391.0,86382.0,2.61e-06]
[1766012835006,0.47345,86389.0,86382.0,2.61e-06]
[1766012837489,0.47345,86389.0,86382.0,0.00100261]
[1766012840001,0.0907,86390.0,86382.0,2.61e-06]
[1766012840002,0.70558703,86383.0,86382.0,2.61e-06]
[1766012840207,0.70558703,86383.0,86350.0,0.45741]
[1766012840208,0.47245,86365.0,86350.0,0.45741]
[1766012840541,0.58022354,86360.0,86352.0,0.013895]
[1766012840740,0.58022354,86360.0,86350.0,0.00037559]
[1766012840741,1.05267354,86360.0,86350.0,0.00037559]
[1766012840943,1.06425297,86360.0,86353.0,0.01832]
[1766012841109,0.47245,86360.0,86353.0,0.01832]
[1766012841313,0.48402943,86360.0,86353.0,0.01832]
[1766012841526,0.01157956,86359.0,86351.0,0.01832]
[1766012841712,0.24317136,86359.0,86351.0,0.01832]
[1766012841858,0.01157983,86357.0,86351.0,0.01832]
[1766012842074,0.01157956,86359.0,86350.0,0.00037559]
[1766012842297,0.0115797,86358.0,86353.0,0.001]
[1766012842495,0.01157956,86359.0,86353.0,0.001]
[1766012843136,0.01318956,86359.0,86353.0,0.001]
[1766012843373,0.81180497,86363.0,86347.0,0.00195459]
[1766012843374,0.01158077,86350.0,86347.0,0.00195459]
[1766012843570,0.46901,86346.0,86329.0,0.59677]
[1766012843897,0.46901,86345.0,86330.0,0.01832]
[1766012844446,0.0907,86347.0,86330.0,0.61509]
[1766012844649,0.10228117,86347.0,86330.0,1.0725]
[1766012844879,0.24321037,86345.0,86331.0,0.01832]
[1766012845099,0.23163209,86344.0,86331.0,0.01832]
[1766012845325,0.24421037,86345.0,86330.0,0.45741]
[1766012845326,0.23163723,86342.0,86330.0,0.45741]
[1766012845578,0.23163723,86342.0,86332.0,0.01832]
[1766012845579,0.01158211,86340.0,86332.0,0.01832]
[1766012845994,0.01158144,86345.0,86332.0,0.01832]
[1766012846229,0.01158117,86347.0,86332.0,0.01832]
[1766012846446,0.01158117,86347.0,86335.0,1.05418]
[1766012846663,0.001,86347.0,86335.0,1.05418]
[1766012846904,0.58022354,86360.0,86340.0,0.45741]
[1766012847164,0.3338711,86359.0,86344.0,1.05418]
[1766012847335,0.0907,86359.0,86345.0,1.05418]
[1766012847719,0.0115797,86358.0,86345.0,1.05418]
[1766012847918,0.001,86347.0,86346.0,0.45741]
[1766012848133,0.0115797,86358.0,86346.0,0.45741]
[1766012848318,0.0907,86353.0,86344.0,0.01832]
[1766012849497,0.0907,86359.0,86344.0,1.0725]
[1766012849729,0.0907,86359.0,86345.0,1.05418]
[1766012849944,0.73884038,86360.0,86345.0,1.05418]
[1766012850092,0.50725087,86360.0,86345.0,1.05418]
[1766012850489,0.50886087,86360.0,86346.0,0.002]
[1766012850701,0.50886087,86360.0,86344.0,1.0725]
[1766012851534,0.01157956,86359.0,86344.0,0.01832]
[1766012851741,0.74044969,86360.0,86344.0,0.01832]
[1766012851912,0.0907,86359.0,86344.0,0.01832]
[1766012852305,0.0907,86359.0,86348.0,0.45741]
[1766012852705,0.09231,86359.0,86348.0,0.45741]
[1766012853431,0.5722901,86355.0,86344.0,0.01832]
[1766012853628,0.0907,86352.0,86344.0,0.01832]
[1766012855620,0.0907,86356.0,86344.0,0.01832]
[1766012856019,0.1022797,86358.0,86344.0,0.01832]
[1766012856427,0.33387571,86358.0,86344.0,0.01832]
[1766012856605,0.1022797,86358.0,86346.0,0.45741]
[1766012856807,0.0907,86358.0,86346.0,0.45741]
[1766012857007,0.09231,86359.0,86346.0,0.45741]
[1766012857408,0.001,86358.0,86346.0,0.45741]
[1766012857608,0.09231,86359.0,86345.0,0.59677]
[1766012857831,0.01832,86369.0,86349.0,1.05418]
[1766012857832,0.33545799,86368.0,86349.0,1.05418]
[1766012858032,0.001,86358.0,86350.0,1.05418]
[1766012858247,0.09231,86368.0,86351.0,1.05418]
[1766012858403,0.58022354,86370.0,86354.0,0.45741]
[1766012858606,0.58022354,86370.0,86356.0,1.05418]
[1766012858607,0.59180163,86370.0,86356.0,1.05418]
[1766012858818,0.59180163,86370.0,86354.0,0.00161287]
[1766012858819,0.47001,86367.0,86354.0,0.00161287]
[1766012859019,0.47001,86365.0,86354.0,0.01993287]
[1766012859292,0.56232,86365.0,86354.0,0.01993287]
[1766012859626,0.01157863,86366.0,86354.0,0.01993287]
[1766012859627,0.10227822,86369.0,86357.0,0.59677]
[1766012859877,0.00011257,86365.0,86357.0,1.05418]
[1766012860514,0.00011257,86365.0,86357.0,0.45741]
[1766012860723,0.0907,86364.0,86357.0,1.05418]
[1766012861882,0.33396809,86365.0,86357.0,0.45741]
[1766012862086,0.10239133,86365.0,86354.0,0.01993287]
[1766012862455,0.09081257,86365.0,86354.0,0.01993287]
[1766012863271,0.00011257,86365.0,86354.0,0.01993287]
[1766012863929,0.01169133,86365.0,86354.0,0.01993287]
[1766012864134,0.01169133,86365.0,86355.0,1.07528]
[1766012864336,0.01169133,86365.0,86354.0,0.01993287]
[1766012864963,0.24316664,86361.0,86354.0,0.01993287]
[1766012865137,0.10227943,86360.0,86354.0,0.00161287]
[1766012865342,0.24317163,86359.0,86354.0,0.00161287]
[1766012865672,0.24317163,86359.0,86347.0,0.01832]
[1766012865673,0.1814,86358.0,86347.0,0.01832]
[1766012865835,0.1929797,86358.0,86347.0,0.01832]
[1766012866026,0.1814,86358.0,86347.0,0.01832]
[1766012866843,0.1824,86358.0,86347.0,0.01832]
[1766012867831,0.00011257,86365.0,86350.0,0.013895]
[1766012869256,0.00011257,86365.0,86351.0,1.07528]
[1766012869456,0.00011257,86365.0,86351.0,0.59307]
[1766012869661,0.00111257,86365.0,86350.0,0.013895]
[1766012870070,0.00011257,86365.0,86350.0,0.013895]
[1766012870277,0.01157822,86369.0,86352.0,1.07528]
[1766012870513,0.00037559,86369.0,86352.0,1.07528]
[1766012870716,0.01195381,86369.0,86352.0,1.07528]
[1766012871079,0.01195381,86369.0,86353.0,0.59307]
[1766012871297,0.01157836,86368.0,86353.0,0.59307]
[1766012871698,0.01157863,86366.0,86352.0,0.48221]
[1766012871901,0.8048604,86367.0,86352.0,0.48221]
[1766012872097,0.01157863,86366.0,86352.0,0.48221]
[1766012872917,0.8048604,86367.0,86352.0,0.48221]
[1766012873771,0.47001,86362.0,86347.0,0.01832]
[1766012873981,0.47001,86355.0,86339.0,0.00025532]
[1766012874184,0.56171,86352.0,86340.0,0.01832]
[1766012874486,0.59211557,86360.0,86339.0,0.01857532]
[1766012874487,0.24318976,86353.0,86339.0,0.01857532]
[1766012874669,0.56171,86351.0,86339.0,0.01857532]
[1766012875058,0.56171,86350.0,86339.0,0.01857532]
[1766012875277,0.01157997,86356.0,86339.0,0.01857532]
[1766012875278,0.01158091,86349.0,86339.0,0.00025532]
[1766012875479,0.47001,86338.0,86324.0,0.013895]
[1766012875639,0.47001,86338.0,86325.0,0.01832]
[1766012875640,0.09145,86337.0,86325.0,0.01832]
[1766012876024,0.09145,86337.0,86331.0,0.00025536]
[1766012876628,0.09145,86337.0,86331.0,0.00036793]
[1766012878265,0.10303251,86337.0,86331.0,0.00036793]
[1766012878459,0.01158265,86336.0,86331.0,0.00036793]
[1766012878689,0.01158265,86336.0,86331.0,0.00136793]
[1766012879038,0.01158265,86336.0,86325.0,0.01832]
[1766012879039,0.01158292,86334.0,86325.0,0.01832]
[1766012879276,0.01158305,86333.0,86325.0,0.01842437]
[1766012879481,0.56009,86334.0,86325.0,0.01842437]
[1766012879987,0.01158305,86333.0,86325.0,0.01842437]
[1766012880194,0.09145,86333.0,86331.0,0.001]
[1766012880434,0.09145,86333.0,86325.0,0.01842437]
[1766012880641,0.48022292,86334.0,86325.0,0.01842437]
[1766012880642,0.23166917,86331.0,86325.0,4.37e-06]
[1766012880857,0.03480836,86332.0,86325.0,4.37e-06]
[1766012880858,0.01158319,86332.0,86325.0,4.37e-06]
[1766012881441,0.01158332,86331.0,86325.0,4.37e-06]
[1766012881625,0.0907,86333.0,86325.0,4.37e-06]
[1766012881827,0.01158292,86334.0,86325.0,4.37e-06]
[1766012881828,0.0907,86334.0,86325.0,0.00100437]
[1766012882190,0.0907,86334.0,86325.0,4.37e-06]
[1766012882476,0.0907,86334.0,86325.0,0.00100437]
[1766012882675,0.0907,86334.0,86325.0,4.37e-06]
[1766012882967,0.01158265,86336.0,86325.0,0.00100437]
[1766012882968,0.10228265,86336.0,86325.0,0.00100437]
[1766012883315,0.0907,86333.0,86325.0,0.00100437]
[1766012883579,0.01158292,86334.0,86325.0,0.00100437]
[1766012883802,0.10228292,86334.0,86325.0,0.00100437]
[1766012884140,0.3339419,86334.0,86325.0,0.00100437]
[1766012884616,0.10228292,86334.0,86325.0,0.00100437]
[1766012884763,0.0907,86334.0,86325.0,4.37e-06]
[1766012885628,0.0907,86334.0,86325.0,0.00100437]
[1766012887508,0.01158292,86334.0,86325.0,0.00100437]
[1766012887734,0.09135,86329.0,86325.0,0.00100437]
[1766012887929,0.10293359,86329.0,86325.0,0.00100437]
[1766012888136,0.10293359,86329.0,86305.0,0.61576438]
[1766012888137,0.01158493,86319.0,86305.0,0.61576438]
[1766012888448,0.01158466,86321.0,86305.0,0.61576438]
[1766012888449,0.46838,86310.0,86305.0,0.61576438]
[1766012888655,0.0115856,86314.0,86305.0,0.61576438]
[1766012888833,0.01158587,86312.0,86305.0,0.61576438]
[1766012889255,0.23173091,86307.0,86306.0,0.02073972]
[1766012889483,0.23173091,86307.0,86306.0,0.00768701]
[1766012889751,0.23173091,86307.0,86305.0,0.60575139]
[1766012889959,0.23173091,86307.0,86305.0,0.57075139]
[1766012890168,0.23173091,86307.0,86305.0,0.53575139]
[1766012890384,0.23173091,86307.0,86305.0,0.51075139]
[1766012890549,0.23173091,86307.0,86305.0,0.47575139]
[1766012890750,0.23173091,86307.0,86305.0,0.44575139]
[1766012890970,0.23173091,86307.0,86305.0,0.41575139]
[1766012891174,0.23173091,86307.0,86305.0,0.38575139]
[1766012891314,0.23173091,86307.0,86305.0,0.37075139]
[1766012891518,0.001,86307.0,86305.0,0.37075139]
[1766012891750,0.01158641,86308.0,86305.0,0.37075139]
[1766012891943,0.23173199,86307.0,86305.0,0.37075139]
[1766012892554,0.23173261,86307.0,86305.0,0.37075139]
[1766012893742,0.23273261,86307.0,86306.0,0.00054283]
[1766012893941,0.001,86307.0,86306.0,0.00054283]
[1766012895485,0.23173359,86306.0,86305.0,0.37029422]
[1766012896249,0.00161,86307.0,86305.0,0.37029422]
[1766012896441,0.23334307,86307.0,86305.0,0.37029422]
[1766012896656,0.00161,86307.0,86305.0,0.37029422]
[1766012897236,0.10228466,86321.0,86308.0,0.5855]
[1766012897544,0.01158547,86315.0,86308.0,0.45948]
[1766012897715,0.0907,86314.0,86308.0,0.45948]
[1766012898723,0.09063929,86314.0,86308.0,0.45948]
[1766012898923,0.01158574,86313.0,86305.0,0.37029422]
[1766012899185,0.2432949,86315.0,86305.0,0.37029422]
[1766012899342,0.04865851,86314.0,86305.0,0.37029422]
[1766012900113,0.01158574,86313.0,86305.0,0.37029422]
[1766012900317,0.06024411,86314.0,86305.0,0.37029422]
[1766012900455,0.0115856,86314.0,86305.0,0.37029422]
[1766012900651,0.1022856,86314.0,86305.0,0.37029422]
[1766012901061,0.0907,86314.0,86305.0,0.37029422]
[1766012901611,0.03483703,86324.0,86310.0,0.5855]
[1766012901755,0.10901,86331.0,86308.0,0.45948]
[1766012901756,0.01158439,86323.0,86308.0,0.45948]
[1766012901957,0.0115848,86320.0,86311.0,0.5855]
[1766012902569,0.01158493,86319.0,86311.0,0.5855]
[1766012902786,0.01158493,86319.0,86305.0,0.37029422]
[1766012902787,0.01158506,86318.0,86305.0,0.37029422]
[1766012902992,0.01158506,86318.0,86306.0,0.5855]
[1766012903191,0.24328411,86319.0,86306.0,0.5855]
[1766012903395,0.24328123,86320.0,86306.0,0.5855]
[1766012903593,0.24328123,86320.0,86307.0,0.45948]
[1766012903859,0.01158493,86319.0,86307.0,1.04498]
[1766012904093,0.2432784,86321.0,86307.0,1.04498]
[1766012904299,0.01158493,86319.0,86307.0,1.04498]
[1766012904521,0.10239698,86323.0,86307.0,1.04498]
[1766012904720,0.0115848,86320.0,86307.0,1.04498]
[1766012905958,0.01158466,86321.0,86307.0,1.04498]
[1766012906182,0.24327858,86321.0,86307.0,1.04498]
[1766012906379,0.0115848,86320.0,86307.0,1.04498]
[1766012906962,0.24328165,86320.0,86307.0,1.04498]
[1766012907366,0.24327846,86321.0,86307.0,1.04498]
[1766012907567,0.0115848,86320.0,86306.0,1.04498]
[1766012908032,0.1022848,86320.0,86307.0,0.5855]
[1766012908237,0.1022848,86320.0,86305.0,0.37029422]
[1766012908238,0.001146,86307.0,86305.0,0.27959422]
[1766012908460,0.001146,86307.0,86303.0,0.48172081]
[1766012908461,0.23173359,86306.0,86303.0,0.48172081]
[1766012908973,0.23173359,86306.0,86304.0,0.48916566]
[1766012909157,0.23173359,86306.0,86304.0,0.47916566]
[1766012910646,0.23173359,86306.0,86304.0,0.46406566]
[1766012910817,0.23334359,86306.0,86304.0,0.45406566]
[1766012911033,0.23334359,86306.0,86304.0,0.44406566]
[1766012911215,0.23334359,86306.0,86304.0,0.41906566]
[1766012911610,0.23334359,86306.0,86304.0,0.40406566]
[1766012911821,0.23334359,86306.0,86304.0,0.39406566]
[1766012912024,0.23334359,86306.0,86304.0,0.36406566]
[1766012912210,0.23434359,86306.0,86304.0,0.36406566]
[1766012913174,0.23434359,86306.0,86304.0,0.34896566]
[1766012913717,0.23173628,86305.0,86304.0,0.32886566]
[1766012914159,0.23173628,86305.0,86304.0,0.31386566]
[1766012914359,0.23173628,86305.0,86304.0,0.29376566]
[1766012914563,0.23173628,86305.0,86304.0,0.28376566]
[1766012914564,0.30650502,86305.0,86304.0,0.28376566]
[1766012914803,0.30650502,86305.0,86304.0,0.25876566]
[1766012914984,0.30650502,86305.0,86304.0,0.23866566]
[1766012915161,0.30650502,86305.0,86304.0,0.20876566]
[1766012915359,0.30750502,86305.0,86304.0,0.17876566]
[1766012915726,0.23273628,86305.0,86304.0,0.13376566]
[1766012915916,0.23273628,86305.0,86304.0,0.11376566]
[1766012916118,0.001,86305.0,86304.0,0.10876566]
[1766012916402,0.10228627,86309.0,86305.0,0.5855]
[1766012916560,0.0907,86309.0,86304.0,0.11037853]
[1766012917370,0.001,86305.0,86304.0,0.11037853]
[1766012917547,0.01158641,86308.0,86306.0,1.04498]
[1766012917754,0.01158641,86308.0,86304.0,0.11037853]
[1766012917755,0.0907,86306.0,86304.0,0.11037853]
[1766012919103,0.33401785,86307.0,86304.0,0.11037853]
[1766012919548,0.0907,86307.0,86304.0,0.11037853]
[1766012920232,0.0907,86306.0,86304.0,0.11037853]
[1766012920837,0.0907,86306.0,86304.0,0.11137853]
[1766012921115,0.0907,86306.0,86305.0,0.45945]
[1766012921319,0.0907,86306.0,86304.0,0.10115566]
[1766012921320,0.0036,86305.0,86304.0,0.10115566]
[1766012921527,0.0943,86305.0,86304.0,0.06615566]
[1766012921678,0.0907,86303.0,86302.0,0.37922867]
[1766012921883,0.14071839,86303.0,86302.0,0.05028932]
[1766012922233,0.14071839,86303.0,86290.0,0.0004]
[1766012922234,0.0907,86301.0,86300.0,0.38624318]
[1766012922423,0.0907,86301.0,86300.0,0.37624318]
[1766012922629,0.0907,86299.0,86290.0,0.0004]
[1766012922831,0.23174971,86300.0,86290.0,0.0004]
[1766012922832,0.32247388,86291.0,86290.0,0.0004]
[1766012924053,0.32247388,86291.0,86290.0,0.00051251]
[1766012924284,0.0907,86291.0,86290.0,0.00051251]
[1766012927580,0.013895,86302.0,86290.0,0.00051251]
[1766012927581,0.013895,86302.0,86292.0,1.06478]
[1766012927747,0.0907,86305.0,86292.0,1.06639287]
[1766012928171,0.01158694,86304.0,86292.0,1.06639287]
[1766012928386,0.01158708,86303.0,86292.0,1.06639287]
[1766012928593,0.24332957,86303.0,86292.0,1.06639287]
[1766012928792,0.01158708,86303.0,86294.0,0.013895]
[1766012928998,0.01158694,86304.0,86294.0,0.013895]
[1766012929568,0.10228694,86304.0,86294.0,0.013895]
[1766012930094,0.10228694,86304.0,86294.0,0.01550787]
[1766012930288,0.01158708,86303.0,86294.0,0.01550787]
[1766012930719,0.10228694,86304.0,86294.0,0.01550787]
[1766012931284,0.01158708,86303.0,86294.0,0.01550787]
[1766012931666,0.10228694,86304.0,86294.0,0.01550787]
[1766012931851,0.0907,86304.0,86294.0,0.01550787]
[1766012932747,0.0907,86306.0,86295.0,0.60533]
[1766012933014,0.33402056,86306.0,86294.0,0.46106287]
[1766012933174,0.0907,86306.0,86296.0,1.06478]
[1766012933319,0.01158614,86310.0,86300.0,0.60533]
[1766012933523,0.01158614,86310.0,86302.0,0.60533]
[1766012933736,0.011586,86311.0,86302.0,0.46106287]
[1766012934106,0.01158614,86310.0,86303.0,0.60533]
[1766012934312,0.24330344,86312.0,86303.0,0.60533]
[1766012934520,0.24329172,86317.0,86303.0,0.60694287]
[1766012934655,0.01158547,86315.0,86304.0,0.45945]
[1766012934855,0.243295,86315.0,86305.0,0.60533]
[1766012935076,0.23171281,86314.0,86305.0,0.60533]
[1766012935277,0.243295,86315.0,86305.0,0.60533]
[1766012935497,0.0907,86314.0,86304.0,0.45945]
[1766012935648,0.0907,86314.0,86303.0,0.00161287]
[1766012935850,0.0907,86317.0,86303.0,0.00161287]
[1766012936089,0.0907,86317.0,86307.0,0.60533]
[1766012936858,0.13219309,86320.0,86307.0,0.60533]
[1766012937057,0.15053603,86319.0,86307.0,0.60533]
[1766012937256,0.33193603,86319.0,86307.0,0.00161287]
[1766012938317,0.33293603,86319.0,86307.0,0.00161287]